[Event "10th Sharjah Cup Women 2020"]
[Site "Sharjah"]
[Date "2020.01.07"]
[Round "4.23"]
[White "Mira, Husain Al Hammadi"]
[Black "Greibrokk, Ingrid"]
[Result "0-1"]
[ECO "A03"]
[WhiteElo "1048"]
[BlackElo "1855"]
[Annotator "NA RC"]
[PlyCount "52"]
[EventDate "2020.01.04"]
[EventType "swiss"]
[EventCountry "UAE"]
[SourceTitle "playchess.com"]
[Source "ChessBase"]
[SourceQuality "1"]
[TimeControl "5400+30"]

{[%evp 14,52,-28,-86,-87,-98,-85,-68,32767,-145,32767,32767,32767,32767,32767,-134,32767,32767,32767,32767,32767,-289,-323,-316,-387,-364,-339,-336,-422,-860,32767,32767,-1269,-1055,-773,-1829,-5493,-1864,-2070,-29997,-29998]} 1. f4 {[%emt 0:00:00]} d5 {[%emt 0:00:36]} 2. Nf3 {[%emt 0:00:00]} g6 {[%emt 0:00:34]} 3. e3 {[%emt 0:00:25]} Bg7 {[%emt 0:00:40]} 4. Be2 {[%emt 0:00:32]} e6 {[%emt 0:00:18]} (4... b6 5. O-O Bb7 6. Ne5 Nf6 7. d3 Nfd7 8. d4 Nxe5 9. fxe5 O-O 10. Nd2 Nd7 11. Nf3 e6 12. Bd2 {0-1 (56) Adhiban,B (2655)-Li,C (2732) Riadh 2017}) 5. O-O {[%emt 0:00:52]} Ne7 {[%emt 0:00:14]} 6. Qe1 {[%emt 0:01:59] A03: Bird's Opening with 1...d5} O-O {[%emt 0:00:48]} 7. g4 $146 {[%emt 0:02:33]} ({Predecessor:} 7. d3 c5 8. Nbd2 b5 9. Ne5 Qb6 10. Ndf3 Nbc6 11. Qh4 {1-0 (23) Heymann,U-Elschner,A Halle 1993}) 7... c5 {[%emt 0:06:18]} 8. h4 {[%emt 0:04:41]} (8. d4 $11) 8... Nbc6 {[%emt 0:02:11]} 9. c3 {[%emt 0:03:34]} f5 {[%emt 0:03:09]} 10. g5 {[%emt 0:05:59]} e5 {[%emt 0:02:03]} 11. Qg3 {[%emt 0:01:35]} ({White should play} 11. d4 $15) 11... e4 {[%emt 0:18:06]} 12. Nh2 {[%emt 0:00:47]} Be6 {[%emt 0:00:49]} 13. d4 {[%emt 0:01:02]} exd3 {[%emt 0:02:51]} 14. Bxd3 {[%emt 0:00:31]} d4 {[%emt 0:00:10]} 15. e4 {[%emt 0:00:49]} fxe4 {[%emt 0:00:46]} 16. Bxe4 {[%emt 0:00:25]} Nf5 {[%emt 0:00:37]} 17. Bxf5 {[%emt 0:01:37]} Bxf5 {[%emt 0:00:14]} ({Don't take} 17... Rxf5 18. Re1 $19) 18. Ng4 {[%emt 0:00:24]} Qd7 {[%emt 0:06:20]} 19. Nh6+ {[%emt 0:01:15]} Bxh6 {[%emt 0:02:34]} 20. gxh6 {[%emt 0:00:30]} Rae8 {[%emt 0:00:05]} 21. Re1 {[%emt 0:01:01]} (21. h5 $142 Bh3 22. Rf3) 21... Rxe1+ {[%emt 0:00:52]} 22. Qxe1 {[%emt 0:00:08]} Re8 {[%emt 0:00:05]} 23. Qf2 {[%emt 0:01:24]} Bxb1 {[%emt 0:02:10]} 24. Rxb1 {[%emt 0:05:37]} Qg4+ {[%emt 0:00:06]} 25. Kh1 {[%emt 0:04:17]} Re2 {[%emt 0:00:23]} 26. Qf1 {[%emt 0:00:43]} Qxh4+ {[%emt 0:00:10] Double Attack} 0-1

[Event "10th Sharjah Cup Women 2020"]
[Site "Sharjah"]
[Date "2020.01.07"]
[Round "5.3"]
[White "Li, Xueyi"]
[Black "Sukandar, Irine Kharisma"]
[Result "1/2-1/2"]
[ECO "E04"]
[WhiteElo "2307"]
[BlackElo "2402"]
[Annotator "RC"]
[PlyCount "38"]
[EventDate "2020.01.04"]
[EventType "swiss"]
[EventCountry "UAE"]
[SourceTitle "playchess.com"]
[Source "ChessBase"]
[SourceQuality "1"]
[TimeControl "5400+30"]

1. d4 {[%emt 0:00:00]} Nf6 {[%emt 0:00:00]} 2. c4 {[%emt 0:00:05]} e6 {[%emt 0:00:09]} 3. Nf3 {[%emt 0:00:43]} d5 {[%emt 0:00:19]} 4. g3 {[%emt 0:00:08]} dxc4 {[%emt 0:00:44]} 5. Bg2 {[%emt 0:00:07]} Nc6 {[%emt 0:00:25]} 6. Qa4 {[%emt 0:00:35]} Bb4+ {[%emt 0:00:44]} 7. Bd2 {[%emt 0:00:09]} Nd5 {[%emt 0:00:25]} 8. Bxb4 {[%emt 0:00:08]} Ndxb4 {[%emt 0:00:07]} 9. O-O {[%emt 0:00:17]} Rb8 {[%emt 0:00:54]} 10. Nc3 {[%emt 0:01:43]} a6 {[%emt 0:00:54]} 11. Ne5 {[%emt 0:01:05]} O-O {[%emt 0:00:54]} 12. Nxc6 {[%emt 0:00:31]} Nxc6 {[%emt 0:00:09]} 13. Bxc6 {[%emt 0:00:13]} bxc6 {[%emt 0:00:07]} 14. Qxc4 {[%emt 0:00:07]} Rxb2 {[%emt 0:02:24]} 15. Rab1 {[%emt 0:00:20]} Rb6 {[%emt 0:00:35]} 16. Na4 {[%emt 0:00:07]} Rb5 {[%emt 0:00:35]} 17. Nc3 {[%emt 0:00:06]} Rb6 {[%emt 0:00:27]} 18. Na4 {[%emt 0:00:07]} Rb5 {[%emt 0:00:20]} 19. Nc3 {[%emt 0:00:08]} Rb6 {[%emt 0:00:04]} 1/2-1/2

[Event "10th Sharjah Cup Women 2020"]
[Site "Sharjah"]
[Date "2020.01.07"]
[Round "5.4"]
[White "Abdulla, Khayala"]
[Black "Gong, Qianyun"]
[Result "1-0"]
[ECO "B22"]
[WhiteElo "2275"]
[BlackElo "2371"]
[Annotator "ChessBase"]
[PlyCount "47"]
[EventDate "2020.01.04"]
[EventType "swiss"]
[EventCountry "UAE"]
[SourceTitle "playchess.com"]
[Source "ChessBase"]
[SourceQuality "1"]
[TimeControl "5400+30"]

1. e4 {[%emt 0:00:00]} c5 {[%emt 0:00:00]} 2. c3 {[%emt 0:01:11]} d5 {[%emt 0:00:00]} 3. exd5 {[%emt 0:00:06]} Qxd5 {[%emt 0:00:00]} 4. Nf3 {[%emt 0:00:07]} g6 {[%emt 0:00:16]} 5. d4 {[%emt 0:05:48]} Bg7 {[%emt 0:00:05]} 6. Be3 {[%emt 0:03:07]} cxd4 {[%emt 0:12:51]} 7. cxd4 {[%emt 0:05:44]} Nh6 {[%emt 0:02:15]} 8. Qc1 {[%emt 0:05:18]} Bg4 {[%emt 0:19:16]} 9. Bxh6 {[%emt 0:03:16]} Bxh6 {[%emt 0:00:04]} 10. Qxh6 {[%emt 0:00:05]} Bxf3 {[%emt 0:00:05]} 11. gxf3 {[%emt 0:00:59]} Nc6 {[%emt 0:00:07]} 12. Nc3 {[%emt 0:25:40]} Qxf3 {[%emt 0:01:13]} 13. Rg1 {[%emt 0:00:10]} Nxd4 {[%emt 0:05:50]} 14. Be2 {[%emt 0:02:57]} Qf5 {[%emt 0:14:21]} 15. Kf1 {[%emt 0:06:27]} Rd8 {[%emt 0:18:53]} 16. Rd1 {[%emt 0:04:47]} e5 {[%emt 0:01:53]} 17. Qg5 {[%emt 0:15:29]} Qh3+ {[%emt 0:00:10]} 18. Rg2 {[%emt 0:00:58]} O-O {[%emt 0:05:40]} 19. Bg4 {[%emt 0:01:42]} f6 {[%emt 0:00:14]} 20. Bxh3 {[%emt 0:00:35]} fxg5 {[%emt 0:00:05]} 21. Rxg5 {[%emt 0:00:29]} Nf3 {[%emt 0:00:12]} 22. Rxd8 {[%emt 0:01:02]} Rxd8 {[%emt 0:00:07]} 23. Rg3 {[%emt 0:00:15]} Nd4 {[%emt 0:01:13]} 24. Re3 {[%emt 0:00:46]} 1-0

[Event "10th Sharjah Cup Women 2020"]
[Site "Sharjah"]
[Date "2020.01.07"]
[Round "5.18"]
[White "Pujari, Rucha"]
[Black "Mariam, Essa"]
[Result "1-0"]
[ECO "E10"]
[WhiteElo "2187"]
[BlackElo "1560"]
[Annotator "ChessBase"]
[PlyCount "81"]
[EventDate "2020.01.04"]
[EventType "swiss"]
[EventCountry "UAE"]
[SourceTitle "playchess.com"]
[Source "ChessBase"]
[SourceQuality "1"]
[TimeControl "5400+30"]

1. d4 {[%emt 0:00:00]} Nf6 {[%emt 0:00:00]} 2. c4 {[%emt 0:00:00]} e6 {[%emt 0:00:11]} 3. Nf3 {[%emt 0:00:00]} c5 {[%emt 0:01:29]} 4. d5 {[%emt 0:00:44]} exd5 {[%emt 0:00:10]} 5. cxd5 {[%emt 0:00:02]} d6 {[%emt 0:00:10]} 6. Nc3 {[%emt 0:00:14]} Be7 {[%emt 0:01:49]} 7. g3 {[%emt 0:00:20]} a6 {[%emt 0:05:32]} 8. a4 {[%emt 0:00:22]} b6 {[%emt 0:00:50]} 9. Bg2 {[%emt 0:00:11]} Bb7 {[%emt 0:00:27]} 10. O-O {[%emt 0:00:42]} O-O {[%emt 0:01:32]} 11. Nh4 {[%emt 0:06:01]} Qc8 {[%emt 0:09:05]} 12. e4 {[%emt 0:00:51]} Re8 {[%emt 0:01:35]} 13. Nf5 {[%emt 0:06:24]} Bf8 {[%emt 0:00:26]} 14. Bf4 {[%emt 0:00:22]} Qd7 {[%emt 0:09:43]} 15. Qb3 {[%emt 0:20:11]} Qc7 {[%emt 0:03:45]} 16. Ne3 {[%emt 0:02:55]} Nh5 {[%emt 0:08:24]} 17. Nc4 {[%emt 0:03:42]} Nxf4 {[%emt 0:04:11]} 18. gxf4 {[%emt 0:00:04]} Nd7 {[%emt 0:01:58]} 19. Rfe1 {[%emt 0:01:00]} Rab8 {[%emt 0:02:44]} 20. Rad1 {[%emt 0:06:23]} Qd8 {[%emt 0:13:08]} 21. Qc2 {[%emt 0:12:07]} Ba8 {[%emt 0:08:30]} 22. e5 {[%emt 0:04:36]} dxe5 {[%emt 0:00:46]} 23. Nxe5 {[%emt 0:00:47]} Nxe5 {[%emt 0:01:06]} 24. fxe5 {[%emt 0:00:14]} Qg5 {[%emt 0:00:36]} 25. Re4 {[%emt 0:04:32]} Rbd8 {[%emt 0:02:08]} 26. f4 {[%emt 0:00:56]} Qf5 {[%emt 0:01:34]} 27. Qb3 {[%emt 0:04:45]} c4 {[%emt 0:04:44]} 28. Qxb6 {[%emt 0:04:22]} Rb8 {[%emt 0:00:09]} 29. Qf2 {[%emt 0:00:14]} Rec8 {[%emt 0:00:55]} 30. Kh1 {[%emt 0:00:54]} Rb3 {[%emt 0:01:30]} 31. Re2 {[%emt 0:01:19]} Bc5 {[%emt 0:00:59]} 32. Qh4 {[%emt 0:01:10]} Qg6 {[%emt 0:07:53]} 33. d6 {[%emt 0:05:47]} Rcb8 {[%emt 0:03:47]} 34. Bxa8 {[%emt 0:02:27]} Rxa8 {[%emt 0:00:05]} 35. Rg2 {[%emt 0:01:37]} Qe6 {[%emt 0:01:49]} 36. d7 {[%emt 0:00:52]} Be7 {[%emt 0:00:14]} 37. d8=Q+ {[%emt 0:01:01]} Rxd8 {[%emt 0:00:16]} 38. Rxd8+ {[%emt 0:00:03]} Bf8 {[%emt 0:00:11]} 39. Nd5 {[%emt 0:01:50]} Rb7 {[%emt 0:01:57]} 40. Nf6+ {[%emt 0:00:23]} Kh8 {[%emt 0:00:06]} 41. Rxf8# {[%emt 0:00:13]} 1-0

[Event "10th Sharjah Cup Women 2020"]
[Site "Sharjah"]
[Date "2020.01.07"]
[Round "5.19"]
[White "Soyunlu, Narmin"]
[Black "Kanter, Elizaveta"]
[Result "1/2-1/2"]
[ECO "A05"]
[WhiteElo "2020"]
[BlackElo "1411"]
[Annotator "NA RC"]
[PlyCount "63"]
[EventDate "2020.01.04"]
[EventType "swiss"]
[EventCountry "UAE"]
[SourceTitle "playchess.com"]
[Source "ChessBase"]
[SourceQuality "1"]
[TimeControl "5400+30"]

1. Nf3 {[%emt 0:00:00]} Nf6 {[%emt 0:00:00]} 2. g3 {[%emt 0:00:10]} g6 {[%emt 0:00:00]} 3. Bg2 {[%emt 0:00:04]} Bg7 {[%emt 0:00:04]} 4. c4 {[%emt 0:02:46]} O-O {[%emt 0:00:40]} 5. d4 {[%emt 0:00:54]} c5 {[%emt 0:00:46]} 6. dxc5 {[%emt 0:03:08] E60: King's Indian: Unusual lines and Fianchetto Variation without Nc3} (6. Nc3 d6 7. O-O Nc6 8. dxc5 dxc5 9. Bf4 Nh5 10. Be3 Nd4 11. Qc1 Be6 12. b3 Qa5 13. Bxd4 cxd4 14. Nb5 Rad8 15. Qe1 Qxe1 16. Raxe1 a6 17. Nc7 Bc8 18. Nd5 Rfe8 {½-½ (47) Howell,D (2696)-Jones,G (2682) London 2018}) 6... Ne4 {[%emt 0:00:47]} 7. O-O {[%emt 0:00:59]} Nxc5 {[%emt 0:00:52]} 8. Nc3 $146 {[%emt 0:05:31]} ({Predecessor:} 8. Nbd2 Nc6 9. Rb1 a5 10. b3 d6 11. Bb2 Bf5 12. Bxg7 Kxg7 13. Ra1 Qd7 14. Re1 {0-1 (39) Surinya,T (1972)-Simonyi,Z (2262) Budapest 2008}) 8... Nc6 {[%emt 0:01:37]} 9. Be3 {[%emt 0:04:34]} d6 {[%emt 0:01:17]} 10. Rc1 {[%emt 0:06:09]} Bf5 {[%emt 0:04:46]} 11. Nd4 {[%emt 0:04:09]} Nxd4 {[%emt 0:03:19]} 12. Bxd4 {[%emt 0:00:53]} Bh6 {[%emt 0:02:05]} 13. Ra1 {[%emt 0:08:10]} Qc8 {[%emt 0:03:37]} 14. Nd5 {[%emt 0:02:51]} Re8 {[%emt 0:02:54]} 15. Bc3 {[%emt 0:08:00]} Bg7 {[%emt 0:07:08]} 16. Bxg7 {[%emt 0:02:00]} Kxg7 {[%emt 0:00:14]} 17. b4 {[%emt 0:06:15]} Nd7 {[%emt 0:02:40]} 18. Qd4+ {[%emt 0:07:13]} Kg8 {[%emt 0:01:38]} 19. Rac1 {[%emt 0:05:00]} Ne5 {[%emt 0:06:40]} (19... Nb6 $16) 20. c5 {[%emt 0:04:04]} Nc6 {[%emt 0:02:29]} 21. Qh4 {[%emt 0:01:19]} dxc5 {[%emt 0:01:48]} 22. b5 {[%emt 0:03:08]} Nd4 {[%emt 0:01:33]} 23. Nxe7+ {[%emt 0:00:11]} Rxe7 {[%emt 0:00:19]} 24. Qxe7 {[%emt 0:00:04]} c4 {[%emt 0:00:42]} 25. Bxb7 {[%emt 0:05:09]} Nxe2+ {[%emt 0:02:53]} 26. Kh1 {[%emt 0:00:35]} Qe8 {[%emt 0:00:54]} 27. Qxe8+ $18 {[%emt 0:02:44]} Rxe8 {[%emt 0:00:11]} 28. Rfe1 {[%emt 0:06:00]} Be4+ {[%emt 0:03:19]} 29. Bxe4 {[%emt 0:00:05]} Nxc1 {[%emt 0:00:51]} 30. Rxc1 {[%emt 0:01:19]} Rxe4 {[%emt 0:00:10]} 31. Kg2 {[%emt 0:00:25]} Kf8 {[%emt 0:02:43]} 32. Rc2 {[%emt 0:07:06]} 1/2-1/2

[Event "10th Sharjah Cup Women 2020"]
[Site "Sharjah"]
[Date "2020.01.07"]
[Round "5.20"]
[White "Khalil, Reem"]
[Black "Jalaluldeen, Kareen Kamal J."]
[Result "0-1"]
[ECO "C15"]
[WhiteElo "1295"]
[BlackElo "1784"]
[Annotator "NA RC"]
[PlyCount "80"]
[EventDate "2020.01.04"]
[EventType "swiss"]
[EventCountry "UAE"]
[SourceTitle "playchess.com"]
[Source "ChessBase"]
[SourceQuality "1"]
[TimeControl "5400+30"]

1. e4 {[%emt 0:00:00]} e6 {[%emt 0:00:00]} 2. d4 {[%emt 0:00:00]} d5 {[%emt 0:00:00]} 3. Nc3 {[%emt 0:00:01]} Bb4 {[%emt 0:00:00]} 4. Qe2 {[%emt 0:01:07]} dxe4 {[%emt 0:03:46]} 5. Qxe4 {[%emt 0:00:04]} Nf6 {[%emt 0:00:37]} 6. Qd3 {[%emt 0:01:42]} Nbd7 {[%emt 0:05:28]} 7. Nf3 {[%emt 0:01:09]} b6 {[%emt 0:02:16]} 8. a3 {[%emt 0:01:30]} Be7 {[%emt 0:00:53]} 9. Ne5 {[%emt 0:03:31]} Nxe5 {[%emt 0:08:27]} 10. dxe5 {[%emt 0:00:10]} Qxd3 {[%emt 0:06:38]} 11. Bxd3 {[%emt 0:00:36]} Nd5 {[%emt 0:01:54]} 12. Bb5+ {[%emt 0:10:30]} Bd7 {[%emt 0:00:56]} 13. Nxd5 {[%emt 0:10:19]} exd5 {[%emt 0:00:12]} 14. Bxd7+ {[%emt 0:00:36]} Kxd7 {[%emt 0:00:02]} 15. Be3 {[%emt 0:00:56]} Rad8 {[%emt 0:00:54]} 16. O-O-O {[%emt 0:00:29]} Kc8 {[%emt 0:00:19]} 17. Rd3 {[%emt 0:01:57]} c5 {[%emt 0:04:08]} 18. f4 {[%emt 0:00:46]} d4 {[%emt 0:00:52]} 19. Bf2 {[%emt 0:00:06]} Rhe8 {[%emt 0:01:04]} 20. Re1 {[%emt 0:01:18]} f6 {[%emt 0:05:22]} 21. c3 {[%emt 0:09:42]} dxc3 {[%emt 0:04:44]} 22. Rxc3 {[%emt 0:00:40]} fxe5 {[%emt 0:02:45]} 23. Rxe5 {[%emt 0:01:07]} Bf6 {[%emt 0:01:47]} 24. Rxe8 {[%emt 0:01:14]} Rxe8 {[%emt 0:00:01]} 25. Re3 {[%emt 0:01:27]} Rd8 {[%emt 0:00:37]} 26. Re4 {[%emt 0:03:56]} Bxb2+ {[%emt 0:11:46]} 27. Kxb2 {[%emt 0:02:02]} Rd2+ {[%emt 0:00:05]} 28. Kc3 {[%emt 0:00:27]} Rxf2 {[%emt 0:00:16]} 29. g4 {[%emt 0:00:57]} Kd7 {[%emt 0:01:14]} 30. h4 {[%emt 0:03:06]} Rf3+ {[%emt 0:02:17]} 31. Kb2 {[%emt 0:00:14]} g6 {[%emt 0:03:30]} 32. a4 {[%emt 0:05:34]} a6 {[%emt 0:02:35]} 33. Ka2 {[%emt 0:07:08]} b5 {[%emt 0:01:56]} 34. a5 {[%emt 0:03:23]} b4 {[%emt 0:03:33]} 35. Kb2 {[%emt 0:03:25]} Kd6 {[%emt 0:06:27]} 36. Re8 {[%emt 0:04:14]} Rxf4 {[%emt 0:01:05]} 37. Ra8 {[%emt 0:00:08]} Kc6 {[%emt 0:02:08]} 38. Rxa6+ {[%emt 0:00:48]} Kb5 {[%emt 0:00:01]} 39. Ra8 {[%emt 0:00:02]} Rxg4 {[%emt 0:00:22]} 40. a6 {[%emt 0:00:44]} Rxh4 {[%emt 0:01:08]} 0-1

[Event "10th Sharjah Cup Women 2020"]
[Site "Sharjah"]
[Date "2020.01.07"]
[Round "5.21"]
[White "Al-Fayyadh, Zainab Asif Abdulah"]
[Black "Kaushika Sridharan"]
[Result "1-0"]
[ECO "B13"]
[WhiteElo "1646"]
[BlackElo "1205"]
[Annotator "NA"]
[PlyCount "153"]
[EventDate "2020.01.04"]
[EventType "swiss"]
[EventCountry "UAE"]
[SourceTitle "playchess.com"]
[Source "ChessBase"]
[SourceQuality "1"]
[TimeControl "5400+30"]

1. e4 {[%emt 0:00:00]} c6 {[%emt 0:00:00]} 2. d4 {[%emt 0:00:00]} d5 {[%emt 0:00:00]} 3. exd5 {[%emt 0:00:00]} cxd5 {[%emt 0:00:09]} 4. Bd3 {[%emt 0:00:03]} Nc6 {[%emt 0:00:55]} 5. c3 {[%emt 0:00:24]} Nf6 {[%emt 0:01:40]} 6. h3 {[%emt 0:00:13]} e6 {[%emt 0:01:32]} 7. Nf3 {[%emt 0:00:24]} Bd6 {[%emt 0:03:08]} 8. O-O {[%emt 0:00:27]} O-O {[%emt 0:02:19]} 9. Re1 {[%emt 0:01:28]} b6 {[%emt 0:04:48]} 10. Bg5 {[%emt 0:00:36]} Bb7 {[%emt 0:05:58]} 11. Nbd2 {[%emt 0:00:50]} h6 {[%emt 0:04:10]} 12. Bh4 {[%emt 0:00:36]} Re8 {[%emt 0:04:47]} 13. Ne5 {[%emt 0:00:30]} Be7 {[%emt 0:07:04]} 14. Bb5 {[%emt 0:01:33]} Rc8 {[%emt 0:02:45]} 15. Qa4 {[%emt 0:01:58]} Qc7 {[%emt 0:06:02]} 16. Bg3 {[%emt 0:02:24]} Bd6 {[%emt 0:03:47]} 17. Ndf3 {[%emt 0:03:32]} Rf8 {[%emt 0:07:16]} 18. Bd3 {[%emt 0:05:30]} Bxe5 {[%emt 0:03:32]} 19. Nxe5 {[%emt 0:00:26]} Qd8 {[%emt 0:05:28]} 20. Qd1 {[%emt 0:05:41]} Nd7 {[%emt 0:05:12]} 21. Nxd7 {[%emt 0:07:21]} Qxd7 {[%emt 0:00:21]} 22. Qg4 {[%emt 0:01:29]} Qe7 {[%emt 0:02:43]} 23. Bh4 {[%emt 0:00:46]} g5 {[%emt 0:04:55]} 24. Bg3 {[%emt 0:04:03]} Qf6 {[%emt 0:02:21]} 25. h4 {[%emt 0:04:38]} Kh8 {[%emt 0:03:42]} 26. f4 {[%emt 0:04:45]} gxf4 {[%emt 0:05:54]} 27. Qxf4 {[%emt 0:11:11]} Qxf4 {[%emt 0:00:49]} 28. Bxf4 {[%emt 0:00:04]} Kg7 {[%emt 0:01:44]} 29. Rf1 {[%emt 0:00:05]} Rh8 {[%emt 0:00:42]} 30. Bb5 {[%emt 0:00:27]} Kf8 {[%emt 0:00:43]} 31. Bd6+ {[%emt 0:00:37]} Ke8 {[%emt 0:00:54]} 32. Rf6 {[%emt 0:01:12]} Rd8 {[%emt 0:00:53]} 33. Bf4 {[%emt 0:00:51]} h5 {[%emt 0:00:34]} 34. Rf1 {[%emt 0:00:32]} Rd7 {[%emt 0:01:07]} 35. Be2 {[%emt 0:01:42]} a6 {[%emt 0:01:35]} 36. Bh6 {[%emt 0:01:48]} Re7 {[%emt 0:01:27]} 37. Bxh5 {[%emt 0:01:04]} Rh7 {[%emt 0:00:28]} 38. g4 {[%emt 0:01:10]} Na5 {[%emt 0:00:43]} 39. b3 {[%emt 0:01:21]} Bc6 {[%emt 0:01:02]} 40. Bf4 {[%emt 0:01:46]} Bb5 {[%emt 0:00:43]} 41. Re1 {[%emt 0:01:14]} Kd7 {[%emt 0:01:48]} 42. Bg5 {[%emt 0:01:13]} Bd3 {[%emt 0:00:58]} 43. Rf3 {[%emt 0:01:18]} Be4 {[%emt 0:00:35]} 44. Rf4 {[%emt 0:00:33]} Re8 {[%emt 0:00:32]} 45. Rxf7+ {[%emt 0:01:14]} Rxf7 {[%emt 0:00:13]} 46. Bxf7 {[%emt 0:00:05]} Rf8 {[%emt 0:00:25]} 47. Rf1 {[%emt 0:00:15]} Rc8 {[%emt 0:00:47]} 48. Bd2 {[%emt 0:00:58]} Bd3 {[%emt 0:00:26]} 49. Re1 {[%emt 0:00:42]} Be4 {[%emt 0:00:14]} 50. Rf1 {[%emt 0:01:06]} Ke7 {[%emt 0:00:16]} 51. g5 {[%emt 0:00:29]} Rh8 {[%emt 0:00:46]} 52. h5 {[%emt 0:00:44]} Nc6 {[%emt 0:00:29]} 53. h6 {[%emt 0:06:17]} Nd8 {[%emt 0:00:28]} 54. Bh5 {[%emt 0:01:05]} Bf5 {[%emt 0:00:28]} 55. Kg2 {[%emt 0:00:38]} Nf7 {[%emt 0:00:37]} 56. Kg3 {[%emt 0:01:40]} b5 {[%emt 0:01:04]} 57. Bg4 {[%emt 0:00:41]} Bg6 {[%emt 0:00:30]} 58. Rf6 {[%emt 0:00:14]} Rg8 {[%emt 0:00:43]} 59. Rxe6+ {[%emt 0:00:23]} Kf8 {[%emt 0:00:32]} 60. Rxa6 {[%emt 0:00:15]} Be4 {[%emt 0:00:37]} 61. Ra8+ {[%emt 0:00:06]} Nd8 {[%emt 0:00:46]} 62. Rxd8+ {[%emt 0:00:06]} Kf7 {[%emt 0:00:07]} 63. Be6+ {[%emt 0:00:22]} Kxe6 {[%emt 0:00:08]} 64. Rxg8 {[%emt 0:00:06]} Kf7 {[%emt 0:00:06]} 65. Rb8 {[%emt 0:00:11]} Kg6 {[%emt 0:00:10]} 66. Rxb5 {[%emt 0:00:09]} Kf7 {[%emt 0:00:14]} 67. a4 {[%emt 0:00:10]} Ke7 {[%emt 0:00:06]} 68. h7 {[%emt 0:00:12]} Bxh7 {[%emt 0:00:09]} 69. Rb7+ {[%emt 0:00:04]} Kd6 {[%emt 0:00:12]} 70. Rxh7 {[%emt 0:00:06]} Ke6 {[%emt 0:00:09]} 71. a5 {[%emt 0:00:25]} Kd6 {[%emt 0:00:17]} 72. g6 {[%emt 0:00:08]} Ke6 {[%emt 0:00:29]} 73. a6 {[%emt 0:00:14]} Kf6 {[%emt 0:00:10]} 74. g7 {[%emt 0:00:09]} Kf7 {[%emt 0:00:13]} 75. a7 {[%emt 0:00:05]} Kg8 {[%emt 0:00:13]} 76. a8=Q+ {[%emt 0:00:17]} Kxh7 {[%emt 0:00:09]} 77. g8=Q# {[%emt 0:00:04]} 1-0

[Event "10th Sharjah Cup Women 2020"]
[Site "Sharjah"]
[Date "2020.01.07"]
[Round "5.22"]
[White "Aisha Mohamed Al Muaini"]
[Black "Al Ghafri, Wafia"]
[Result "0-1"]
[ECO "B10"]
[WhiteElo "1195"]
[BlackElo "1609"]
[Annotator "NA RC"]
[PlyCount "68"]
[EventDate "2020.01.04"]
[EventType "swiss"]
[EventCountry "UAE"]
[SourceTitle "playchess.com"]
[Source "ChessBase"]
[SourceQuality "1"]
[TimeControl "5400+30"]

1. e4 {[%emt 0:00:00]} c6 {[%emt 0:00:00]} 2. d3 {[%emt 0:00:00]} d5 {[%emt 0:00:10]} 3. Nd2 {[%emt 0:00:00]} e5 {[%emt 0:03:11]} 4. Ngf3 {[%emt 0:00:45]} Bd6 {[%emt 0:01:09]} 5. Be2 {[%emt 0:00:56]} Nf6 {[%emt 0:01:07]} 6. O-O {[%emt 0:00:17]} O-O {[%emt 0:01:21]} 7. b3 {[%emt 0:00:28]} Be6 8. Bb2 {[%emt 0:03:51]} Nbd7 {[%emt 0:08:47]} 9. c4 {[%emt 0:03:21]} d4 {[%emt 0:02:05]} 10. Ng5 {[%emt 0:02:36]} Nc5 {[%emt 0:07:24]} 11. b4 {[%emt 0:02:09]} Na6 {[%emt 0:02:23]} 12. Nxe6 {[%emt 0:00:33]} fxe6 {[%emt 0:00:26]} 13. c5 {[%emt 0:00:23]} Be7 {[%emt 0:01:05]} 14. Qb3 {[%emt 0:01:40]} Nc7 {[%emt 0:01:20]} 15. Nc4 {[%emt 0:00:31]} Nd7 {[%emt 0:01:57]} 16. Bg4 {[%emt 0:00:47]} Rf6 {[%emt 0:05:06]} 17. f4 {[%emt 0:12:32]} Rg6 {[%emt 0:21:08]} 18. Bh3 {[%emt 0:01:37]} Bf6 {[%emt 0:00:56]} 19. f5 {[%emt 0:01:27]} exf5 {[%emt 0:03:41]} 20. Nxe5+ {[%emt 0:00:28]} Nd5 {[%emt 0:08:23]} 21. Nxg6 {[%emt 0:00:57]} hxg6 {[%emt 0:01:03]} 22. exd5 {[%emt 0:00:08]} cxd5 {[%emt 0:04:51]} 23. Qxd5+ {[%emt 0:00:13]} Kh7 {[%emt 0:00:17]} 24. Bxd4 {[%emt 0:00:27]} Bxd4+ {[%emt 0:01:45]} 25. Qxd4 {[%emt 0:00:07]} Nf6 {[%emt 0:00:50]} 26. Qxd8 {[%emt 0:00:40]} Rxd8 {[%emt 0:00:03]} 27. Rad1 {[%emt 0:00:09]} Nd5 {[%emt 0:00:43]} 28. Rfe1 {[%emt 0:01:40]} Nxb4 {[%emt 0:01:13]} 29. Re7 {[%emt 0:00:11]} Nxa2 {[%emt 0:04:15]} 30. Rxb7 {[%emt 0:00:20]} Nc3 {[%emt 0:01:49]} 31. Ra1 {[%emt 0:02:42]} Rxd3 {[%emt 0:00:42]} 32. Raxa7 {[%emt 0:00:20]} Ne4 {[%emt 0:01:55]} 33. Rxg7+ {[%emt 0:00:21]} Kh6 {[%emt 0:00:18]} 34. c6 {[%emt 0:00:24]} Rd1# {[%emt 0:00:06]} 0-1